bitfinex-derivatives/quotes_BTCF0:USTF0_20260107
["timestamp","ask_amount","ask_price","bid_price","bid_amount"]
[1767828220321,0.010942,91474.0,91461.0,8.448e-05]
[1767828220617,0.10510112,91474.0,91461.0,8.448e-05]
[1767828220921,0.09415912,91474.0,91461.0,8.448e-05]
[1767828221113,0.010943,91469.0,91461.0,8.448e-05]
[1767828221314,8.083e-05,91468.0,91453.0,0.010945]
[1767828221509,0.010943,91467.0,91450.0,0.010945]
[1767828222819,0.010944,91464.0,91447.0,0.010945]
[1767828223023,0.010944,91461.0,91444.0,0.010946]
[1767828223212,0.093,91460.0,91444.0,0.010946]
[1767828223720,0.010944,91459.0,91443.0,0.010946]
[1767828224118,0.093,91460.0,91445.0,0.010946]
[1767828224319,0.103944,91460.0,91445.0,0.010946]
[1767828224921,0.093,91460.0,91439.0,0.00218726]
[1767828226527,0.010944,91459.0,91439.0,0.00218726]
[1767828226717,0.010944,91459.0,91443.0,0.010946]
[1767828226920,0.010943,91471.0,91439.0,0.00218726]
[1767828226921,0.09415912,91500.0,91449.0,0.14943351]
[1767828227121,0.01094,91494.0,91476.0,0.010942]
[1767828227428,0.10509912,91494.0,91476.0,0.010942]
[1767828227722,0.09415912,91494.0,91478.0,0.010942]
[1767828228117,0.01094,91493.0,91478.0,0.010942]
[1767828229524,0.10509912,91494.0,91478.0,0.010942]
[1767828230024,0.04211406,91553.0,91479.0,0.04980684]
[1767828230236,0.09415912,91521.0,91490.0,0.14943351]
[1767828230530,0.09415912,91521.0,91509.0,0.010938]
[1767828230731,0.09415912,91521.0,91511.0,0.010938]
[1767828230919,0.09415912,91521.0,91508.0,0.010938]
[1767828231122,0.093,91520.0,91509.0,0.010938]
[1767828231318,0.093,91520.0,91493.0,0.01094]
[1767828231928,0.09415912,91519.0,91508.0,0.010938]
[1767828232133,0.09415912,91519.0,91493.0,0.01094]
[1767828232134,0.09415912,91528.0,91500.0,0.14943351]
[1767828232434,0.18715912,91527.0,91510.0,0.010938]
[1767828232630,0.09415912,91526.0,91510.0,0.010938]
[1767828232834,0.093,91525.0,91510.0,0.010938]
[1767828233134,0.09415912,91524.0,91510.0,0.010938]
[1767828235137,0.093,91523.0,91510.0,0.010938]
[1767828235338,0.09415912,91522.0,91510.0,0.010938]
[1767828235838,0.09415912,91521.0,91489.0,0.01094]
[1767828236135,0.09415912,91521.0,91505.0,0.010939]
[1767828238536,0.09415912,91521.0,91489.0,0.01094]
[1767828238831,0.09415912,91519.0,91504.0,0.010939]
[1767828239834,0.09415912,91515.0,91484.0,0.010941]
[1767828240025,0.09415912,91514.0,91484.0,0.010941]
[1767828240226,0.13627318,91510.0,91497.0,0.010939]
[1767828240432,0.09415912,91508.0,91497.0,0.010939]
[1767828240834,0.09415912,91506.0,91493.0,0.01094]
[1767828241232,0.09415912,91506.0,91481.0,0.12]
[1767828241233,0.09415912,91506.0,91495.0,0.01094]
[1767828241434,0.10509612,91519.0,91500.0,0.010939]
[1767828241736,0.14721018,91515.0,91498.0,0.010939]
[1767828241932,0.14228297,91512.0,91498.0,0.010939]
[1767828242134,0.09958489,91511.0,91498.0,0.010939]
[1767828242648,0.11052289,91511.0,91498.0,0.010939]
[1767828243238,0.11052289,91511.0,91487.0,0.010941]
[1767828243440,0.09542204,91510.0,91497.0,0.010939]
[1767828243739,0.09542204,91506.0,91493.0,0.01094]
[1767828243938,0.09542204,91503.0,91481.0,0.010941]
[1767828244129,0.09542204,91500.0,91478.0,0.010942]
[1767828244432,0.09542204,91500.0,91487.0,0.010941]
[1767828244636,0.09542204,91500.0,91491.0,0.01094]
[1767828245022,0.09542204,91500.0,91487.0,0.010941]
[1767828245224,0.09542204,91495.0,91473.0,0.093]
[1767828245437,0.09542204,91493.0,91472.0,0.010942]
[1767828245838,0.09542204,91493.0,91483.0,0.010941]
[1767828246138,0.09542204,91493.0,91473.0,0.010942]
[1767828246335,0.09542204,91493.0,91479.0,0.010942]
[1767828246631,0.09542204,91479.0,91463.0,0.010944]
[1767828246833,0.09542204,91479.0,91445.0,0.00308233]
[1767828246834,0.09542204,91474.0,91445.0,0.00308233]
[1767828247032,0.09542204,91470.0,91444.0,0.093]
[1767828247236,0.09542204,91470.0,91455.0,0.010944]
[1767828248928,0.09542204,91502.0,91456.0,0.00268487]
[1767828249135,0.09542204,91502.0,91484.0,0.010941]
[1767828249435,0.093,91504.0,91486.0,0.010941]
[1767828249436,0.09542204,91497.0,91486.0,0.010941]
[1767828249645,0.09542204,91495.0,91473.0,0.010942]
[1767828250238,0.093,91494.0,91473.0,0.010942]
[1767828250434,0.09542204,91493.0,91473.0,0.010942]
[1767828250634,0.09542204,91493.0,91485.0,0.010941]
[1767828251939,0.09542204,91493.0,91467.0,0.093]
[1767828251940,0.09542204,91493.0,91481.0,0.010941]
[1767828252331,0.09542204,91493.0,91483.0,0.010941]
[1767828252732,0.09542204,91527.0,91494.0,0.00086661]
[1767828252929,0.09542204,91523.0,91511.0,0.010938]
[1767828253137,0.09542204,91517.0,91509.0,0.010938]
[1767828253325,0.04269534,91518.0,91496.0,0.01094]
[1767828253730,0.04269534,91518.0,91509.0,0.010938]
[1767828254225,0.04269534,91518.0,91506.0,0.010938]
[1767828254826,0.04269534,91518.0,91503.0,0.010939]
[1767828255032,0.04269534,91518.0,91504.0,0.010939]
[1767828255344,0.09542204,91517.0,91504.0,0.010939]
[1767828255641,0.18842204,91516.0,91506.0,0.010938]
[1767828255840,0.09542204,91515.0,91506.0,0.010938]
[1767828256650,0.13811738,91515.0,91487.0,0.010941]
[1767828256833,0.09542204,91513.0,91487.0,0.010941]
[1767828257547,0.09542204,91513.0,91499.0,0.010939]
[1767828257740,0.09542204,91513.0,91501.0,0.010939]
[1767828257934,0.09542204,91511.0,91501.0,0.010939]
[1767828258840,0.13811738,91502.0,91476.0,0.010942]
[1767828259049,0.13811738,91500.0,91474.0,0.010942]
[1767828259245,0.13811738,91500.0,91497.0,0.010939]
[1767828259246,0.093,91500.0,91497.0,0.010939]
[1767828259540,0.09542204,91509.0,91499.0,0.010939]
[1767828259846,0.093,91508.0,91499.0,0.010939]
[1767828260046,0.18842204,91508.0,91495.0,0.01094]
[1767828260346,0.13811738,91507.0,91492.0,0.01094]
[1767828260645,0.10636004,91506.0,91489.0,0.01094]
[1767828261048,0.09542204,91498.0,91485.0,0.010941]
[1767828261242,0.09542204,91496.0,91467.0,0.09919575]
[1767828261448,0.09542204,91494.0,91468.0,0.09296]
[1767828261651,0.09542204,91494.0,91484.0,0.010941]
[1767828261837,0.04269534,91495.0,91481.0,0.010941]
[1767828261838,0.09542204,91492.0,91481.0,0.010941]
[1767828262148,0.09542204,91488.0,91478.0,0.010942]
[1767828262950,0.09542204,91488.0,91480.0,0.010942]
[1767828263248,0.09542204,91488.0,91467.0,0.010943]
[1767828263451,0.09542204,91495.0,91467.0,0.11003699]
[1767828263646,0.09542204,91492.0,91482.0,0.010941]
[1767828263946,0.09542204,91490.0,91482.0,0.010941]
[1767828264249,0.13811738,91490.0,91469.0,0.010943]
[1767828264442,0.09542204,91489.0,91469.0,0.010943]
[1767828264747,0.09542204,91489.0,91476.0,0.010942]
[1767828265348,0.13811738,91489.0,91476.0,0.010942]
[1767828265545,0.09542204,91486.0,91473.0,0.010942]
[1767828265744,0.13811738,91486.0,91473.0,0.010942]
[1767828265947,0.09542204,91485.0,91473.0,0.010942]
[1767828266453,0.09542204,91476.0,91455.0,0.093]
[1767828266750,0.09542204,91473.0,91464.0,0.010943]
[1767828267050,0.09542204,91473.0,91448.0,0.093]
[1767828267640,0.09542204,91473.0,91462.0,0.010944]
[1767828267845,0.09542204,91471.0,91448.0,0.093]
[1767828268045,0.13811738,91466.0,91452.0,0.010945]
[1767828268249,0.09542204,91464.0,91452.0,0.010945]
[1767828268550,0.09542204,91463.0,91440.0,0.093]
[1767828270055,0.09542204,91463.0,91453.0,0.010945]
[1767828270353,0.09542204,91463.0,91441.0,0.010946]
[1767828270554,4e-08,91463.0,91457.0,0.010944]
[1767828272855,4e-08,91463.0,91444.0,0.010946]
[1767828273356,0.09258092,91461.0,91447.0,0.010945]
[1767828273553,0.04636792,91456.0,91430.0,0.09206638]
[1767828273746,0.13894884,91454.0,91440.0,0.010946]
[1767828273946,0.09258092,91448.0,91434.0,0.010947]
[1767828274148,0.09258092,91443.0,91416.0,0.130949]
[1767828274546,0.09258092,91443.0,91419.0,0.010949]
[1767828274748,0.09258092,91443.0,91416.0,0.130949]
[1767828274749,0.09258092,91442.0,91416.0,0.130949]
[1767828274949,0.09258092,91442.0,91428.0,0.010948]
[1767828275150,0.09258092,91442.0,91430.0,0.010947]
[1767828275445,0.13894884,91442.0,91430.0,0.010947]
[1767828275644,0.09258092,91441.0,91430.0,0.010947]
[1767828276149,0.09258092,91441.0,91417.0,0.093]
[1767828276346,0.09258092,91441.0,91434.0,0.010947]
[1767828276661,8.4e-07,91443.0,91438.0,0.010946]
[1767828276844,0.093,91442.0,91438.0,0.010946]
[1767828277050,0.093,91442.0,91440.0,0.010946]
[1767828277356,0.093,91443.0,91440.0,0.010946]
[1767828278059,0.010945,91455.0,91440.0,0.010946]
[1767828278249,0.093,91454.0,91440.0,0.010946]
[1767828278557,0.13894884,91452.0,91440.0,0.010946]
[1767828278758,0.13894884,91449.0,91440.0,0.010946]
[1767828279257,0.13894884,91449.0,91421.0,0.10301538]
[1767828279560,0.13936792,91448.0,91428.0,0.010948]
[1767828279764,0.23194884,91448.0,91428.0,0.010948]
[1767828279953,0.23194884,91448.0,91436.0,0.010947]
[1767828280254,0.01116789,91483.0,91437.0,0.04577848]
[1767828280451,0.010942,91479.0,91452.0,0.13784486]
[1767828280652,0.010939,91499.0,91437.0,0.52031072]
[1767828280653,0.09258092,91484.0,91474.0,0.010942]
[1767828280855,0.093,91485.0,91479.0,0.010942]
[1767828281051,0.093,91485.0,91466.0,0.10300938]
[1767828281052,0.093,91485.0,91476.0,0.010942]
[1767828281558,0.093,91485.0,91472.0,0.010942]
[1767828281954,0.093,91485.0,91473.0,0.010942]
[1767828282160,0.093,91485.0,91466.0,0.09206638]
[1767828282361,0.103941,91485.0,91471.0,0.010943]
[1767828282750,0.093,91485.0,91471.0,0.010943]
[1767828283862,0.093,91485.0,91473.0,0.010942]
[1767828284364,0.093,91485.0,91469.0,0.010943]
[1767828285050,0.010941,91484.0,91469.0,0.010943]
[1767828285259,0.093,91485.0,91471.0,0.010943]
[1767828286260,0.010941,91484.0,91468.0,0.010943]
[1767828286462,5.5e-07,91469.0,91466.0,0.010943]
[1767828288160,5.5e-07,91469.0,91463.0,0.010944]
[1767828288665,5.5e-07,91469.0,91461.0,0.010944]
[1767828290772,5.5e-07,91469.0,91456.0,0.010944]
[1767828290958,0.01094355,91469.0,91451.0,0.09206638]
[1767828291159,5.5e-07,91469.0,91455.0,0.010945]
[1767828291361,5.5e-07,91469.0,91457.0,0.010944]
[1767828291768,5.5e-07,91469.0,91454.0,0.010945]
[1767828292169,0.01094355,91469.0,91454.0,0.010945]
[1767828292774,0.01094355,91469.0,91444.0,0.10301238]
[1767828292775,0.05731147,91469.0,91444.0,0.10301238]
[1767828293074,0.093,91468.0,91457.0,0.09206638]
[1767828293271,5.5e-07,91469.0,91449.0,0.09206638]
[1767828293486,5.5e-07,91469.0,91447.0,0.09206638]
[1767828293664,5.5e-07,91469.0,91415.0,0.37216478]
[1767828293665,5.5e-07,91469.0,91465.0,0.010943]
[1767828293975,0.04636792,91490.0,91466.0,0.09206638]
[1767828294171,0.093,91492.0,91468.0,0.09206638]
[1767828294370,0.093,91492.0,91476.0,0.010942]
[1767828294566,0.04636792,91496.0,91476.0,0.010942]
[1767828294766,0.093,91495.0,91474.0,0.09206638]
[1767828294980,0.093,91495.0,91479.0,0.010942]
[1767828296078,0.093,91495.0,91474.0,0.10300838]
[1767828298174,0.05730592,91508.0,91486.0,0.093]
[1767828299070,0.04636792,91508.0,91486.0,0.093]
[1767828299979,0.04636792,91506.0,91486.0,0.093]
[1767828300879,0.010939,91501.0,91486.0,0.093]
[1767828301381,0.05730692,91499.0,91477.0,0.09206638]
[1767828301584,0.04636792,91498.0,91477.0,0.09206638]
[1767828301768,0.05383175,91519.0,91495.0,0.01094]
[1767828301969,0.05383175,91519.0,91478.0,0.13877848]
[1767828301970,0.093,91541.0,91497.0,0.09184395]
[1767828302186,0.05383175,91528.0,91505.0,0.010938]
[1767828302380,0.06476775,91528.0,91505.0,0.093]
[1767828303179,0.05383175,91528.0,91505.0,0.093]
[1767828303576,0.010936,91527.0,91505.0,0.093]
[1767828303883,0.13920938,91529.0,91506.0,0.10278195]
[1767828304176,0.010936,91527.0,91506.0,0.10278195]
[1767828304381,0.010936,91527.0,91506.0,0.09184395]
[1767828304681,0.06476775,91527.0,91506.0,0.09184395]
[1767828305577,0.010937,91519.0,91497.0,0.09184395]
[1767828305881,0.05383175,91520.0,91465.0,0.010943]
[1767828305882,0.05383175,91523.0,91502.0,0.010939]
[1767828306281,0.09302427,91520.0,91489.0,0.09184395]
[1767828306486,0.05383175,91523.0,91504.0,0.010939]
[1767828306672,0.05383175,91523.0,91504.0,0.103939]
[1767828307780,0.05181146,91526.0,91504.0,0.103939]
[1767828307983,0.010936,91525.0,91504.0,0.103939]
[1767828308483,0.06274746,91525.0,91504.0,0.103939]
[1767828308882,0.010937,91522.0,91504.0,0.093]
[1767828309781,0.4,91526.0,91504.0,0.093]
[1767828310084,0.010934,91545.0,91524.0,0.09714054]
[1767828310291,0.010934,91545.0,91526.0,0.010936]
[1767828310472,0.09191151,91545.0,91525.0,0.4]
[1767828310677,0.010934,91547.0,91527.0,0.10807654]
[1767828311294,0.05181146,91550.0,91528.0,0.093]
[1767828311588,0.010934,91542.0,91528.0,0.093]
[1767828311883,0.010934,91542.0,91528.0,0.19014054]
[1767828312286,0.010935,91539.0,91528.0,0.093]
[1767828312485,0.05181146,91545.0,91529.0,0.493]
[1767828312486,0.010935,91536.0,91529.0,0.493]
[1767828312681,0.010935,91532.0,91521.0,0.4]
[1767828312883,0.010935,91535.0,91521.0,0.4]
[1767828313189,0.05181146,91534.0,91521.0,0.493]
[1767828313390,0.05181146,91534.0,91521.0,0.4]
[1767828313578,0.05181146,91534.0,91513.0,0.09296]
[1767828313775,0.0025478,91532.0,91514.0,0.4]
[1767828313980,0.0025478,91532.0,91506.0,0.09714054]
[1767828313981,0.0025478,91531.0,91507.0,0.4]
[1767828314176,0.04337273,91533.0,91507.0,0.4]
[1767828314594,0.04337273,91533.0,91499.0,0.09714054]
[1767828314778,0.04337273,91533.0,91466.0,0.010943]
[1767828314779,0.04337273,91533.0,91504.0,0.4]
[1767828314986,0.04337273,91533.0,91492.0,0.19010054]
[1767828315984,0.04337273,91533.0,91493.0,0.01094]
[1767828316588,0.03497129,91531.0,91493.0,0.01094]
[1767828316795,0.03497129,91531.0,91494.0,0.49714054]
[1767828316985,0.03497129,91531.0,91498.0,0.010939]
[1767828318991,0.03497129,91531.0,91499.0,0.00218583]
[1767828320477,0.03290009,91563.0,91502.0,0.14808576]
[1767828320683,0.010935,91537.0,91517.0,0.09714054]
[1767828320884,0.09296,91543.0,91524.0,0.010936]
[1767828321181,0.09296,91543.0,91529.0,1.10345602]
[1767828321381,0.09296,91543.0,91531.0,0.010935]
[1767828321593,0.09296,91543.0,91529.0,1.09252002]
[1767828322794,0.09296,91543.0,91530.0,0.4]
[1767828323494,0.010935,91534.0,91530.0,0.15638157]
[1767828323690,0.04681934,91542.0,91516.0,0.09714054]
[1767828323895,0.010935,91533.0,91516.0,0.09714054]
[1767828324195,0.010935,91533.0,91522.0,0.37516061]
[1767828324703,0.09296,91533.0,91508.0,0.10807854]
[1767828324886,0.010936,91526.0,91519.0,0.15862827]
[1767828325496,0.09296,91533.0,91519.0,0.15862827]
[1767828325497,0.010936,91530.0,91519.0,0.15862827]
[1767828325693,0.010936,91528.0,91519.0,0.15862827]
[1767828325988,0.010936,91526.0,91519.0,0.15862827]
[1767828326191,0.0068944,91513.0,91449.0,0.1084964]
[1767828326390,0.14912584,91510.0,91454.0,0.05094522]
[1767828326583,0.010943,91465.0,91449.0,0.09296]
[1767828326785,0.010944,91462.0,91440.0,0.010946]
[1767828326989,0.010943,91465.0,91430.0,0.25303284]
[1767828327189,0.010944,91462.0,91430.0,0.25303284]
[1767828327394,7.749e-05,91461.0,91430.0,0.25303284]
[1767828327692,0.010944,91457.0,91430.0,0.25303284]
[1767828328193,0.010944,91457.0,91440.0,0.09714054]
[1767828328789,0.010945,91452.0,91440.0,0.09714054]
[1767828329288,7.749e-05,91461.0,91440.0,0.14808576]
[1767828329489,7.749e-05,91461.0,91441.0,0.09714054]
[1767828329698,7.749e-05,91461.0,91442.0,0.09714054]
[1767828329995,0.010945,91451.0,91442.0,0.09714054]
[1767828332397,0.010945,91448.0,91443.0,0.09960831]
[1767828332599,7.749e-05,91461.0,91443.0,0.09960831]
[1767828333197,7.749e-05,91461.0,91447.0,0.09960831]
[1767828333393,7.749e-05,91461.0,91439.0,0.00218726]
[1767828333394,0.010946,91446.0,91439.0,0.09756624]
[1767828333598,7.749e-05,91461.0,91438.0,0.09218154]
[1767828333599,0.010946,91443.0,91438.0,0.09218154]
[1767828333799,0.010946,91446.0,91435.0,0.093]
[1767828334200,0.010945,91449.0,91435.0,0.093]
[1767828334401,0.010945,91453.0,91435.0,0.093]
[1767828334901,0.009445,91451.0,91435.0,0.093]
[1767828335602,0.009445,91451.0,91436.0,0.09960831]
[1767828336199,0.010945,91449.0,91437.0,0.09960831]
[1767828336396,0.010946,91444.0,91437.0,0.09960831]
[1767828336704,7.749e-05,91461.0,91432.0,0.093]
[1767828336705,0.010946,91442.0,91432.0,0.093]
[1767828337001,0.010947,91431.0,91421.0,0.093]
[1767828337200,9.703e-05,91441.0,91412.0,0.09537898]
[1767828337394,0.010948,91426.0,91412.0,0.09537898]
[1767828337596,0.010948,91426.0,91413.0,0.093]
[1767828337997,0.10661333,91441.0,91413.0,0.093]
[1767828338590,0.10661333,91441.0,91414.0,0.09960831]
[1767828339707,0.010947,91436.0,91414.0,0.09960831]
[1767828340798,0.10661333,91441.0,91414.0,0.09960831]
[1767828341299,0.010947,91432.0,91414.0,0.09960831]
[1767828341505,0.10661333,91441.0,91416.0,0.09960831]
[1767828341801,0.010947,91432.0,91416.0,0.09960831]
[1767828343801,0.010948,91430.0,91416.0,0.09960831]
[1767828343999,0.010947,91436.0,91418.0,0.010949]
[1767828344204,0.10661333,91441.0,91417.0,0.010949]
[1767828344500,0.010947,91435.0,91419.0,0.010949]
[1767828345703,0.09519044,91416.0,91389.0,0.09537898]
[1767828345902,0.010952,91393.0,91390.0,0.04421311]
[1767828346110,0.010951,91400.0,91379.0,7e-07]
[1767828346111,0.09519044,91400.0,91379.0,7e-07]
[1767828346403,0.10873621,91413.0,91380.0,0.09304]
[1767828346803,0.00013213,91412.0,91380.0,0.09304]
[1767828347105,0.00013213,91412.0,91379.0,7e-07]
[1767828347106,0.01354577,91409.0,91381.0,0.09304]
[1767828347308,0.010952,91390.0,91381.0,0.06827]
[1767828347502,0.010952,91392.0,91381.0,0.06827]
[1767828348301,0.01095,91406.0,91381.0,0.060933]
[1767828348507,8.402e-05,91405.0,91381.0,0.060933]
[1767828349204,8.402e-05,91405.0,91379.0,7e-07]
[1767828349205,0.09527446,91405.0,91379.0,7e-07]
[1767828349509,0.09527446,91405.0,91378.0,0.09960831]
[1767828349510,0.09519044,91403.0,91380.0,0.086658]
[1767828349806,0.09519044,91403.0,91380.0,0.073894]
[1767828350604,0.11323994,91403.0,91380.0,0.073894]
[1767828350805,0.11323994,91403.0,91381.0,0.09304]
[1767828351004,0.11323994,91403.0,91382.0,0.09304]
[1767828351199,0.11323994,91403.0,91383.0,0.09304]
[1767828351504,0.11323994,91403.0,91384.0,0.09308]
[1767828352107,0.01860261,91402.0,91373.0,0.19498729]
[1767828352308,0.09519044,91401.0,91374.0,0.19268831]
[1767828352504,0.09519044,91401.0,91375.0,0.09960831]
[1767828354416,0.11719755,91401.0,91375.0,0.09960831]
[1767828354609,0.11719755,91401.0,91375.0,0.09320831]
[1767828354824,0.11719755,91401.0,91376.0,0.09308]
[1767828356621,8.402e-05,91405.0,91377.0,0.19498729]
[1767828356820,0.09527446,91405.0,91377.0,0.19498729]
[1767828357010,0.09519044,91403.0,91377.0,0.19498729]
[1767828357211,0.1182187,91403.0,91377.0,0.19498729]
[1767828357420,8.402e-05,91405.0,91380.0,0.09537898]
[1767828357620,0.09308,91412.0,91381.0,0.09960831]
[1767828357817,0.49308,91412.0,91372.0,0.09960831]
[1767828358124,0.09308,91412.0,91373.0,0.19268831]
[1767828358329,0.09308,91412.0,91373.0,0.09960831]
[1767828358625,0.09308,91412.0,91349.0,0.00218942]
[1767828358626,0.09308,91412.0,91366.0,0.09960831]
[1767828359021,0.09308,91412.0,91367.0,0.09308]
[1767828359326,0.010951,91400.0,91367.0,0.081041]
[1767828359524,0.010953,91382.0,91355.0,0.09537898]
[1767828359716,0.010953,91382.0,91362.0,0.09960831]
[1767828360320,0.0353334,91392.0,91362.0,0.09960831]
[1767828361418,0.0353334,91392.0,91364.0,0.09960831]
[1767828363132,0.09472468,91392.0,91364.0,0.09960831]
[1767828363333,0.0353334,91392.0,91364.0,0.09960831]
[1767828364330,0.0353334,91392.0,91366.0,0.09978253]
[1767828365233,0.0353334,91392.0,91367.0,0.09308]
[1767828367333,0.0353334,91392.0,91367.0,0.19286253]
[1767828367530,0.12437501,91392.0,91367.0,0.19286253]
[1767828367832,0.12437501,91392.0,91368.0,0.09978253]
[1767828368036,0.09229127,91390.0,91321.0,0.09000186]
[1767828368232,0.09229127,91389.0,91321.0,0.09000186]
[1767828368432,0.1977,91390.0,91316.0,0.09312]
[1767828368433,0.09229127,91387.0,91316.0,0.09312]
[1767828368738,0.08510588,91384.0,91316.0,0.09162]
[1767828368937,0.09229127,91381.0,91316.0,0.09162]
[1767828369128,0.09229127,91379.0,91317.0,0.010961]
[1767828369435,0.09901,91377.0,91317.0,0.010961]
[1767828369635,0.09901,91375.0,91316.0,0.09162]
[1767828369834,0.09199419,91364.0,91316.0,0.09162]
[1767828370029,0.19100419,91362.0,91317.0,0.09430771]
[1767828370436,0.19100419,91362.0,91319.0,0.09430771]
[1767828370637,0.19100419,91362.0,91320.0,0.09539299]
[1767828370837,0.19100419,91362.0,91321.0,0.09430771]
[1767828371038,0.19100419,91362.0,91322.0,0.09539299]
[1767828371240,0.20180053,91362.0,91324.0,0.09539299]
[1767828371438,0.010959,91334.0,91326.0,0.09539299]
[1767828371737,0.09307955,91361.0,91331.0,0.09430771]
[1767828371939,0.09307955,91361.0,91313.0,0.010961]
[1767828372128,0.01079634,91362.0,91313.0,0.010961]
[1767828372129,0.09307955,91359.0,91333.0,0.09430771]
[1767828372330,0.09901,91358.0,91334.0,0.09312]
[1767828374045,0.09901,91358.0,91335.0,0.09312]
[1767828374243,0.09901,91358.0,91339.0,0.9507]
[1767828374540,0.09901,91358.0,91335.0,0.09312]
[1767828374929,0.09901,91357.0,91330.0,0.09430771]
[1767828375136,0.09307955,91356.0,91331.0,0.09312]
[1767828375442,0.09901,91355.0,91331.0,0.09312]
[1767828376739,0.09901,91354.0,91330.0,0.09430771]
[1767828377044,0.09901,91354.0,91323.0,0.09539299]
[1767828377045,0.09901,91352.0,91331.0,0.09312]
[1767828377231,0.19208955,91352.0,91325.0,0.09539299]
[1767828377439,0.19208955,91352.0,91326.0,0.2828207]
[1767828377632,0.19208955,91352.0,91327.0,0.09430771]
[1767828377838,0.09901,91351.0,91327.0,0.09430771]
[1767828378036,0.09307955,91350.0,91327.0,0.09430771]
[1767828378344,0.09901,91349.0,91328.0,0.08501]
[1767828378545,0.19208955,91349.0,91328.0,0.0769]
[1767828379150,0.19208955,91349.0,91327.0,0.09430771]
[1767828379552,0.09901,91348.0,91328.0,0.09312]
[1767828381451,0.19208955,91348.0,91328.0,0.09312]
[1767828381645,0.19208955,91345.0,91328.0,0.09312]
[1767828383055,0.09307955,91351.0,91328.0,0.09312]
[1767828383237,0.19208955,91350.0,91328.0,0.09312]
[1767828383445,0.19208955,91347.0,91321.0,0.1897007]
[1767828383643,0.09901,91347.0,91324.0,0.09539299]
[1767828383845,0.19208955,91347.0,91323.0,0.1897007]
[1767828384149,0.19208955,91347.0,91324.0,0.09430771]
[1767828384547,0.09901,91343.0,91317.0,0.1897007]
[1767828384741,0.19208955,91339.0,91318.0,0.09316]
[1767828384940,0.19208955,91339.0,91319.0,0.09316]
[1767828385345,0.19208955,91339.0,91317.0,0.09430771]
[1767828385553,0.09901,91335.0,91305.0,0.09430771]
[1767828385849,0.09316,91354.0,91305.0,0.09430771]
[1767828385850,0.09307955,91330.0,91305.0,0.09430771]
[1767828386050,0.09901,91329.0,91304.0,0.09539299]
[1767828386257,0.09307955,91328.0,91306.0,0.09316]
[1767828386444,0.09316,91336.0,91307.0,0.09316]
[1767828386445,0.010961,91316.0,91307.0,0.09316]
[1767828386646,0.010964,91295.0,91281.0,9.897e-05]
[1767828387044,0.010962,91308.0,91282.0,0.09316]
[1767828387242,0.09316,91326.0,91282.0,0.09316]
[1767828387655,0.09316,91326.0,91290.0,0.010964]
[1767828388046,0.1544988,91326.0,91290.0,0.010964]
[1767828388447,0.1544988,91326.0,91291.0,0.10635699]
[1767828388747,0.1544988,91326.0,91301.0,0.1897007]
[1767828388956,0.1544988,91326.0,91313.0,0.9507]
[1767828389256,0.1544988,91326.0,91303.0,0.1897007]
[1767828389453,0.09901,91325.0,91302.0,0.09316]
[1767828389655,0.09901,91324.0,91297.0,0.09539299]
[1767828389847,0.09901,91324.0,91299.0,0.09430771]
[1767828390047,0.09901,91324.0,91300.0,0.09316]
[1767828390248,0.19208955,91324.0,91300.0,0.09316]
[1767828390958,0.19208955,91324.0,91301.0,0.09316]
[1767828391348,0.09901,91324.0,91301.0,0.09430771]
[1767828391558,0.09901,91324.0,91302.0,0.09316]
[1767828392761,0.1369522,91362.0,91303.0,0.10951343]
[1767828392958,0.25249,91485.0,91303.0,0.10951343]
[1767828392959,0.1982936,91363.0,91329.0,0.19017808]
[1767828393255,0.0945711,91361.0,91333.0,0.0978461]
[1767828393455,0.09248455,91358.0,91333.0,0.1910061]
[1767828393655,0.09248455,91358.0,91334.0,0.0978461]
[1767828393957,0.09248455,91358.0,91333.0,0.09316]
[1767828393958,0.09316,91360.0,91336.0,0.0978461]
[1767828394548,0.09316,91360.0,91338.0,0.09233198]
[1767828394757,0.09316,91360.0,91339.0,0.0978461]
[1767828395455,0.1361409,91391.0,91348.0,0.09233198]
[1767828395656,0.0945711,91392.0,91362.0,0.0978461]
[1767828395859,0.09248455,91391.0,91362.0,0.0978461]
[1767828396057,0.18705565,91385.0,91361.0,0.09316]
[1767828396250,0.09248455,91383.0,91356.0,0.09316]
[1767828396555,0.09248455,91383.0,91358.0,0.0978461]
[1767828397447,0.09248455,91381.0,91351.0,0.0978461]
[1767828397652,0.09248455,91379.0,91352.0,0.09316]
[1767828397852,0.09248455,91379.0,91351.0,0.0978461]
[1767828398054,0.0945711,91378.0,91351.0,0.0978461]
[1767828398262,0.09248455,91374.0,91351.0,0.0978461]
[1767828398757,0.63062276,91601.0,91350.0,0.09316]
[1767828398758,0.09248455,91407.0,91376.0,0.0978461]
[1767828398961,0.09248455,91407.0,91378.0,0.0978461]
[1767828399155,0.09248455,91407.0,91379.0,0.09233198]
[1767828399465,0.09248455,91407.0,91377.0,0.09316]
[1767828399466,0.09316,91411.0,91382.0,0.1087991]
[1767828399652,0.09316,91411.0,91385.0,0.09233198]
[1767828399853,0.09316,91411.0,91386.0,0.0978461]
[1767828400053,0.09316,91411.0,91387.0,0.09233198]
[1767828400264,0.09316,91411.0,91388.0,0.0978461]
[1767828400656,0.09316,91411.0,91390.0,0.0978461]
[1767828404271,0.1036559,91445.0,91410.0,0.19017808]
[1767828404466,0.0945711,91440.0,91395.0,0.09233198]
[1767828404766,0.18705565,91433.0,91401.0,0.0978461]
[1767828404961,0.09312,91432.0,91402.0,0.0978461]
[1767828406959,0.09312,91432.0,91401.0,0.18545198]
[1767828406960,0.18705565,91460.0,91431.0,0.0978461]
[1767828407160,0.09312,91459.0,91431.0,0.0978461]
[1767828407366,0.09312,91459.0,91422.0,0.1087941]
[1767828407367,0.09248455,91453.0,91422.0,0.1087941]
[1767828407663,0.09248455,91453.0,91419.0,0.09233198]
[1767828407664,0.09248455,91453.0,91427.0,0.1087941]
[1767828407858,0.09312,91459.0,91429.0,0.0978461]
[1767828408268,0.18560455,91459.0,91429.0,0.0978461]
[1767828408568,0.09933498,91456.0,91429.0,0.0978461]
[1767828408769,0.09156752,91455.0,91429.0,0.0978461]
[1767828410663,0.09156752,91454.0,91429.0,0.0978461]
[1767828410865,0.09933498,91453.0,91420.0,0.19008085]